[Event "V Copa Marcel Duchamp 2022"]
[Site "Montevideo"]
[Date "2022.02.19"]
[Round "9.21"]
[White "Torales, Agustin"]
[Black "Brizzi, Milagros Tatiana"]
[Result "1/2-1/2"]
[ECO "D45"]
[WhiteElo "1682"]
[BlackElo "2063"]
[Annotator "NA"]
[PlyCount "183"]
[EventDate "2022.02.12"]
[EventCountry "URU"]
[SourceTitle "playchess.com"]
[Source "ChessBase"]
[SourceQuality "1"]
[TimeControl "5400+30"]

1. d4 {[%emt 0:00:17]} d5 {[%emt 0:04:26]} 2. Nf3 {[%emt 0:00:07]} Nf6 {[%emt 0:00:11]} 3. c4 {[%emt 0:00:07]} c6 {[%emt 0:00:15]} 4. Nc3 {[%emt 0:00:26]} e6 {[%emt 0:00:20]} 5. e3 {[%emt 0:01:25]} Nbd7 {[%emt 0:00:10]} 6. Qc2 {[%emt 0:00:09]} b6 {[%emt 0:00:54]} 7. Be2 {[%emt 0:01:50]} Bb7 {[%emt 0:00:08]} 8. O-O {[%emt 0:00:17]} Be7 {[%emt 0:00:16]} 9. b3 {[%emt 0:03:21]} O-O {[%emt 0:02:34]} 10. Bb2 {[%emt 0:00:05]} Rc8 {[%emt 0:00:08]} 11. Rac1 {[%emt 0:00:30]} Qc7 {[%emt 0:01:10]} 12. Rfd1 {[%emt 0:01:54]} Rfd8 {[%emt 0:00:53]} 13. Qb1 {[%emt 0:07:04]} Qb8 {[%emt 0:00:59]} 14. cxd5 {[%emt 0:02:28]} cxd5 {[%emt 0:00:59]} 15. Bd3 {[%emt 0:01:14]} a6 {[%emt 0:01:35]} 16. h3 {[%emt 0:09:42]} b5 {[%emt 0:01:19]} 17. Ne2 {[%emt 0:01:20]} Bd6 {[%emt 0:03:38]} 18. Rxc8 {[%emt 0:09:48]} Rxc8 {[%emt 0:00:07]} 19. Rc1 {[%emt 0:00:05]} Ne4 {[%emt 0:08:55]} 20. Rxc8+ {[%emt 0:13:53]} Qxc8 {[%emt 0:00:19]} 21. Ne5 {[%emt 0:00:05]} f5 {[%emt 0:04:47]} 22. f3 {[%emt 0:04:46]} Nef6 {[%emt 0:00:44]} 23. Nf4 {[%emt 0:00:08]} Qe8 {[%emt 0:04:07]} 24. h4 {[%emt 0:05:10]} Nb6 {[%emt 0:05:22]} 25. Qe1 {[%emt 0:02:44]} Nfd7 {[%emt 0:05:58]} 26. Qa5 {[%emt 0:03:46]} Bc7 {[%emt 0:07:11]} 27. Qb4 {[%emt 0:00:17]} Nxe5 {[%emt 0:03:00]} 28. dxe5 {[%emt 0:00:09]} Nd7 {[%emt 0:00:04]} 29. a4 {[%emt 0:01:53]} Bxe5 {[%emt 0:02:24]} 30. Bxe5 {[%emt 0:03:35]} Nxe5 {[%emt 0:00:04]} 31. Be2 {[%emt 0:00:06]} Bc6 {[%emt 0:06:00] [#]} (31... Nc6 $11 {keeps the balance.} 32. Qd6 Kf7) 32. axb5 $1 {[%emt 0:00:41]} ({Reject} 32. Qd6 $6 Nf7 33. Qxe6 Qxe6 34. Nxe6 bxa4 35. bxa4 Bxa4 $11) 32... axb5 {[%emt 0:02:14]} 33. Qd6 $1 {[%emt 0:00:06]} Ng6 {[%emt 0:00:54]} 34. Nxe6 {[%emt 0:02:41]} (34. Qxe6+ $16 Qxe6 35. Nxe6) 34... Bd7 {[%emt 0:07:00]} 35. Nd4 {[%emt 0:00:34]} Qxe3+ {[%emt 0:02:04]} 36. Kf1 {[%emt 0:00:05]} Qxd4 {[%emt 0:04:41]} 37. Qxd7 {[%emt 0:00:07]} Qa1+ {[%emt 0:00:05]} 38. Kf2 {[%emt 0:00:15]} Qd4+ {[%emt 0:00:03]} 39. Kf1 {[%emt 0:00:09]} b4 {[%emt 0:01:56]} 40. h5 {[%emt 0:00:53]} Nf8 {[%emt 0:00:41]} 41. Qxf5 {[%emt 0:00:05]} Qa1+ {[%emt 0:01:19]} 42. Kf2 $11 {[%emt 0:00:09]} Qa7+ {[%emt 0:00:03]} 43. Kf1 {[%emt 0:01:01]} Qd7 {[%emt 0:00:50]} 44. Qf4 {[%emt 0:02:10]} Qb7 {[%emt 0:01:10]} 45. Qd6 {[%emt 0:01:03]} Nd7 {[%emt 0:02:18]} 46. Bd3 {[%emt 0:00:25]} Nf6 {[%emt 0:01:35]} 47. Bf5 {[%emt 0:00:58]} Qa8 {[%emt 0:05:07]} 48. Kg1 {[%emt 0:05:48]} Qe8 {[%emt 0:02:12]} 49. Be6+ {[%emt 0:02:21]} Kh8 {[%emt 0:00:09]} 50. Bxd5 {[%emt 0:01:05]} Qe1+ {[%emt 0:01:04]} 51. Kh2 {[%emt 0:00:10]} Qh4+ {[%emt 0:00:02]} 52. Kg1 {[%emt 0:02:15]} Qd4+ {[%emt 0:00:04]} 53. Kf1 {[%emt 0:00:04]} Qxd5 {[%emt 0:00:17]} 54. Qf8+ {[%emt 0:00:07]} Qg8 {[%emt 0:01:31]} 55. Qxb4 {[%emt 0:00:04]} Nxh5 {[%emt 0:01:33]} 56. Qc5 {[%emt 0:02:47]} Nf4 57. b4 {[%emt 0:01:17]} Qd8 {[%emt 0:02:53]} 58. Qc4 {[%emt 0:01:38]} Qd3+ {[%emt 0:00:46]} 59. Qxd3 {[%emt 0:00:10]} Nxd3 {[%emt 0:00:01]} 60. b5 {[%emt 0:00:14]} Nc5 {[%emt 0:00:07]} 61. b6 {[%emt 0:00:15]} Kg8 {[%emt 0:00:19]} 62. f4 {[%emt 0:00:26]} Kf7 {[%emt 0:00:11]} 63. g4 {[%emt 0:01:01]} Ke6 {[%emt 0:00:21]} 64. Ke2 {[%emt 0:00:35]} Kd5 {[%emt 0:00:17]} 65. Kf3 {[%emt 0:00:36]} Nb7 {[%emt 0:00:47]} 66. Ke3 {[%emt 0:00:32]} Nd6 {[%emt 0:00:36]} 67. Kd3 {[%emt 0:01:48]} h6 {[%emt 0:00:30]} 68. f5 {[%emt 0:01:36]} Nb7 {[%emt 0:02:08]} 69. Ke3 {[%emt 0:00:19]} Ke5 {[%emt 0:00:35]} 70. Kf3 {[%emt 0:00:08]} Nd6 {[%emt 0:00:14]} 71. Kg3 {[%emt 0:00:31]} h5 {[%emt 0:02:00]} 72. Kh4 {[%emt 0:01:10]} hxg4 {[%emt 0:00:40]} 73. Kxg4 {[%emt 0:00:05]} Kf6 {[%emt 0:00:45]} 74. Kf4 {[%emt 0:00:16]} Nb7 {[%emt 0:01:10]} 75. Kg4 {[%emt 0:00:07]} Nc5 {[%emt 0:00:55]} 76. Kf4 {[%emt 0:00:52]} Kf7 {[%emt 0:00:23]} 77. Kg5 {[%emt 0:00:41]} Nb7 {[%emt 0:00:49]} 78. Kg4 {[%emt 0:00:54]} Kf6 {[%emt 0:01:53]} 79. Kf4 {[%emt 0:00:18]} Nd8 {[%emt 0:00:58]} 80. Kg4 {[%emt 0:00:56]} Ke7 {[%emt 0:00:24]} 81. Kg5 {[%emt 0:00:11]} Kf7 {[%emt 0:00:05]} 82. Kg4 {[%emt 0:01:03]} Nb7 {[%emt 0:01:15]} 83. Kg5 {[%emt 0:00:25]} Nc5 {[%emt 0:00:20]} 84. Kf4 {[%emt 0:01:47]} Kg8 {[%emt 0:01:09]} 85. Kg5 {[%emt 0:00:24]} Kh7 {[%emt 0:00:25]} 86. Kh5 {[%emt 0:00:20]} Nb7 {[%emt 0:00:20]} 87. Kg5 {[%emt 0:00:03]} Nd6 {[%emt 0:00:10]} 88. b7 {[%emt 0:00:56]} Nxb7 {[%emt 0:00:20]} 89. f6 {[%emt 0:00:04]} g6 {[%emt 0:00:24]} 90. f7 {[%emt 0:00:03]} Nd8 {[%emt 0:00:09]} 91. f8=N+ {[%emt 0:00:07]} Kg7 {[%emt 0:00:08]} 92. Nxg6 {[%emt 0:00:04]} 1/2-1/2

[Event "V Copa Marcel Duchamp 2022"]
[Site "Montevideo"]
[Date "2022.02.19"]
[Round "9.22"]
[White "Pichuaga, Juan Pablo"]
[Black "Kulik, Nicolas"]
[Result "1-0"]
[ECO "C02"]
[WhiteElo "2030"]
[BlackElo "1775"]
[Annotator "ChessBase"]
[PlyCount "101"]
[EventDate "2022.02.12"]
[EventCountry "URU"]
[SourceTitle "playchess.com"]
[Source "ChessBase"]
[SourceQuality "1"]
[TimeControl "5400+30"]

1. e4 {[%emt 0:00:04]} e6 {[%emt 0:00:58]} 2. d4 {[%emt 0:00:02]} d5 {[%emt 0:00:07]} 3. e5 {[%emt 0:00:05]} c5 {[%emt 0:00:03]} 4. Nf3 {[%emt 0:00:06]} Nc6 {[%emt 0:00:05]} 5. Bd3 {[%emt 0:00:21]} cxd4 {[%emt 0:00:27]} 6. a3 {[%emt 0:00:19]} Qb6 {[%emt 0:01:37]} 7. b4 {[%emt 0:01:14]} a6 {[%emt 0:01:42]} 8. Bf4 {[%emt 0:01:22]} Nge7 {[%emt 0:01:36]} 9. Qe2 {[%emt 0:01:00]} Bd7 {[%emt 0:01:44]} 10. Nbd2 {[%emt 0:01:09]} Ng6 {[%emt 0:03:06]} 11. Bg3 {[%emt 0:01:27]} Rc8 {[%emt 0:01:52]} 12. O-O {[%emt 0:00:57]} Be7 {[%emt 0:03:03]} 13. h4 {[%emt 0:01:17]} f6 {[%emt 0:04:24]} 14. exf6 {[%emt 0:06:28]} gxf6 {[%emt 0:06:58]} 15. h5 {[%emt 0:03:06]} Nf8 {[%emt 0:00:52]} 16. Nh4 {[%emt 0:01:05]} e5 {[%emt 0:05:39]} 17. f3 {[%emt 0:45:14]} Rg8 {[%emt 0:06:38]} 18. Qf2 {[%emt 0:00:40]} Nd8 {[%emt 0:08:13]} 19. c4 {[%emt 0:04:03]} dxc4 {[%emt 0:01:50]} 20. Nxc4 {[%emt 0:01:26]} Qe6 {[%emt 0:00:46]} 21. Nd2 {[%emt 0:05:37]} Rc3 {[%emt 0:04:20]} 22. Bf5 {[%emt 0:07:19]} Qb6 {[%emt 0:03:28]} 23. Ne4 {[%emt 0:02:29]} Rc6 {[%emt 0:02:08]} 24. f4 {[%emt 0:02:31]} exf4 {[%emt 0:07:52]} 25. Bxf4 {[%emt 0:00:37]} Bxf5 {[%emt 0:02:12]} 26. Nxf5 {[%emt 0:00:10]} Re6 {[%emt 0:01:57]} 27. Rae1 {[%emt 0:01:30]} Nc6 {[%emt 0:05:24]} 28. Bd6 {[%emt 0:06:05]} Rg4 {[%emt 0:07:40]} 29. Bxe7 {[%emt 0:03:04]} Nxe7 {[%emt 0:01:53]} 30. Nxe7 {[%emt 0:02:00]} Rgxe4 {[%emt 0:01:08]} 31. Rxe4 {[%emt 0:00:50]} Rxe7 {[%emt 0:02:37]} 32. Qxd4 {[%emt 0:00:27]} Qxd4+ {[%emt 0:00:44]} 33. Rxd4 {[%emt 0:00:02]} Ne6 {[%emt 0:02:33]} 34. Rd6 {[%emt 0:00:19]} Kf7 {[%emt 0:00:41]} 35. g4 {[%emt 0:00:16]} h6 {[%emt 0:03:18]} 36. Kh2 {[%emt 0:00:44]} Rc7 {[%emt 0:00:41]} 37. Rf2 {[%emt 0:00:46]} Ke7 {[%emt 0:01:21]} 38. Rb6 {[%emt 0:00:13]} Kf7 {[%emt 0:00:27]} 39. Rd2 {[%emt 0:01:16]} Ng5 {[%emt 0:01:45]} 40. Rd8 {[%emt 0:00:36]} Rc2+ {[%emt 0:01:27]} 41. Kg3 {[%emt 0:00:44]} Rc3+ {[%emt 0:00:33]} 42. Kg2 {[%emt 0:00:11]} Rxa3 {[%emt 0:01:41]} 43. Rd7+ {[%emt 0:00:15]} Ke8 {[%emt 0:00:13]} 44. Rdxb7 {[%emt 0:00:19]} Ra2+ {[%emt 0:00:32]} 45. Kf1 {[%emt 0:00:11]} Nf3 {[%emt 0:01:06]} 46. Ra7 {[%emt 0:00:45]} Nh2+ {[%emt 0:01:01]} 47. Ke1 {[%emt 0:00:18]} Ra1+ {[%emt 0:00:28]} 48. Ke2 {[%emt 0:00:24]} Ra2+ {[%emt 0:00:40]} 49. Kd3 {[%emt 0:00:46]} Ra3+ {[%emt 0:00:19]} 50. Kc4 {[%emt 0:00:14]} Nxg4 {[%emt 0:00:19]} 51. Rb8# {[%emt 0:00:09]} 1-0

[Event "V Copa Marcel Duchamp 2022"]
[Site "Montevideo"]
[Date "2022.02.19"]
[Round "9.23"]
[White "Cordero, Daniela"]
[Black "Lavandeira, Juan Facundo"]
[Result "1-0"]
[ECO "E68"]
[WhiteElo "2011"]
[BlackElo "1520"]
[Annotator "ChessBase"]
[PlyCount "86"]
[EventDate "2022.02.12"]
[EventCountry "URU"]
[SourceTitle "playchess.com"]
[Source "ChessBase"]
[SourceQuality "1"]
[TimeControl "5400+30"]

1. d4 {[%emt 0:00:03]} Nf6 {[%emt 0:00:25]} 2. Nf3 {[%emt 0:00:10]} g6 {[%emt 0:00:08]} 3. c4 {[%emt 0:00:13]} Bg7 {[%emt 0:00:40]} 4. g3 {[%emt 0:00:27]} O-O {[%emt 0:00:41]} 5. Bg2 {[%emt 0:00:05]} d6 {[%emt 0:00:04]} 6. O-O {[%emt 0:00:07]} Nbd7 {[%emt 0:00:05]} 7. Nc3 {[%emt 0:00:10]} e5 {[%emt 0:01:55]} 8. e4 {[%emt 0:00:09]} exd4 {[%emt 0:01:05]} 9. Nxd4 {[%emt 0:00:07]} Re8 {[%emt 0:00:05]} 10. Re1 {[%emt 0:00:39]} Nc5 {[%emt 0:00:34]} 11. h3 {[%emt 0:00:33]} Bd7 {[%emt 0:01:07]} 12. Rb1 {[%emt 0:04:02]} Qc8 {[%emt 0:05:04]} 13. Kh2 {[%emt 0:00:58]} Ne6 {[%emt 0:00:16]} 14. Be3 {[%emt 0:03:20]} a6 {[%emt 0:06:07]} 15. b4 {[%emt 0:08:02]} Rb8 {[%emt 0:11:37]} 16. Nd5 {[%emt 0:08:56]} b5 {[%emt 0:14:15]} 17. Nxe6 {[%emt 0:03:36]} Bxe6 {[%emt 0:05:08]} 18. c5 {[%emt 0:04:39]} Nxd5 {[%emt 0:10:15]} 19. exd5 {[%emt 0:00:07]} Bf5 {[%emt 0:00:05]} 20. Rc1 {[%emt 0:06:35]} Qd8 {[%emt 0:22:01]} 21. g4 {[%emt 0:14:30]} Bc8 {[%emt 0:01:28]} 22. Qd2 {[%emt 0:00:57]} h5 {[%emt 0:04:29]} 23. gxh5 {[%emt 0:03:13]} gxh5 {[%emt 0:00:02]} 24. Bg5 {[%emt 0:00:14]} f6 {[%emt 0:00:12]} 25. Bf4 {[%emt 0:04:02]} Rxe1 {[%emt 0:03:37]} 26. Rxe1 {[%emt 0:00:17]} Bf5 {[%emt 0:00:23]} 27. Qe2 {[%emt 0:02:47]} Bg6 {[%emt 0:00:44]} 28. cxd6 {[%emt 0:08:06]} cxd6 {[%emt 0:00:10]} 29. Qe6+ {[%emt 0:00:22]} Bf7 {[%emt 0:00:17]} 30. Qxd6 {[%emt 0:00:22]} Qxd6 {[%emt 0:00:05]} 31. Bxd6 {[%emt 0:00:05]} Rd8 {[%emt 0:00:21]} 32. Be7 {[%emt 0:03:18]} Rxd5 {[%emt 0:06:14]} 33. Bxd5 {[%emt 0:00:10]} Bxd5 {[%emt 0:00:01]} 34. a3 {[%emt 0:01:58]} Kf7 {[%emt 0:01:30]} 35. Bc5 {[%emt 0:03:11]} Bh6 {[%emt 0:02:35]} 36. Re7+ {[%emt 0:04:07]} Kg6 {[%emt 0:00:04]} 37. Be3 {[%emt 0:05:26]} Bxe3 {[%emt 0:01:45]} 38. fxe3 {[%emt 0:00:53]} f5 {[%emt 0:01:43]} 39. Kg3 {[%emt 0:02:08]} Kf6 {[%emt 0:00:05]} 40. Re8 {[%emt 0:00:32]} Bf7 {[%emt 0:00:52]} 41. Rf8 {[%emt 0:00:42]} Ke7 {[%emt 0:00:35]} 42. Ra8 {[%emt 0:00:40]} Kd6 {[%emt 0:00:11]} 43. Kf4 {[%emt 0:00:47]} Kd5 1-0

[Event "V Copa Marcel Duchamp 2022"]
[Site "Montevideo"]
[Date "2022.02.19"]
[Round "9.24"]
[White "Durante, Aurelio"]
[Black "Zaruski, Julio"]
[Result "1-0"]
[ECO "B20"]
[WhiteElo "1944"]
[BlackElo "1764"]
[Annotator "ChessBase"]
[PlyCount "67"]
[EventDate "2022.02.12"]
[EventCountry "URU"]
[SourceTitle "playchess.com"]
[Source "ChessBase"]
[SourceQuality "1"]
[TimeControl "5400+30"]

1. e4 {[%emt 0:00:04]} c5 {[%emt 0:00:41]} 2. d3 {[%emt 0:00:48]} d5 {[%emt 0:02:09]} 3. Nd2 {[%emt 0:00:12]} e6 {[%emt 0:01:05]} 4. Ngf3 {[%emt 0:00:18]} Nc6 {[%emt 0:01:58]} 5. g3 {[%emt 0:00:14]} Nf6 {[%emt 0:04:34]} 6. Bg2 {[%emt 0:00:28]} Be7 {[%emt 0:00:15]} 7. O-O {[%emt 0:00:10]} b5 {[%emt 0:00:10]} 8. Re1 {[%emt 0:00:34]} O-O {[%emt 0:00:09]} 9. e5 {[%emt 0:00:24]} Nd7 {[%emt 0:00:11]} 10. Nf1 {[%emt 0:00:19]} Bb7 {[%emt 0:00:57]} 11. h4 {[%emt 0:00:19]} a5 {[%emt 0:05:57]} 12. N1h2 {[%emt 0:01:33]} a4 {[%emt 0:00:41]} 13. Ng4 {[%emt 0:00:32]} f5 {[%emt 0:00:23]} 14. exf6 {[%emt 0:00:31]} Nxf6 {[%emt 0:00:08]} 15. Nxf6+ {[%emt 0:00:34]} Bxf6 {[%emt 0:00:31]} 16. Rxe6 {[%emt 0:01:24]} a3 {[%emt 0:00:13]} 17. c3 {[%emt 0:00:37]} b4 {[%emt 0:00:30]} 18. Qc2 {[%emt 0:00:36]} Qd7 {[%emt 0:02:39]} 19. Re1 {[%emt 0:01:46]} axb2 {[%emt 0:00:56]} 20. Bxb2 {[%emt 0:00:20]} bxc3 {[%emt 0:05:53]} 21. Bxc3 {[%emt 0:00:34]} Nb4 {[%emt 0:03:37]} 22. Qd2 {[%emt 0:06:21]} Bxc3 {[%emt 0:06:24]} 23. Qxc3 {[%emt 0:00:46]} Rxf3 {[%emt 0:03:28]} 24. Bxf3 {[%emt 0:00:32]} d4 {[%emt 0:00:37]} 25. Qc4+ {[%emt 0:03:10]} Kh8 {[%emt 0:00:26]} 26. Bxb7 {[%emt 0:00:23]} Qxb7 {[%emt 0:00:16]} 27. a3 {[%emt 0:03:52]} Na6 {[%emt 0:02:02]} 28. Rab1 {[%emt 0:01:47]} Qc8 {[%emt 0:03:34]} 29. Qd5 {[%emt 0:01:10]} h6 {[%emt 0:00:30]} 30. Re7 {[%emt 0:00:24]} Rb8 {[%emt 0:00:19]} 31. Rbe1 {[%emt 0:01:15]} Qg4 {[%emt 0:00:40]} 32. Re8+ {[%emt 0:01:00]} Rxe8 {[%emt 0:00:25]} 33. Rxe8+ {[%emt 0:00:08]} Kh7 {[%emt 0:00:09]} 34. h5 {[%emt 0:00:39]} 1-0

[Event "V Copa Marcel Duchamp 2022"]
[Site "Montevideo"]
[Date "2022.02.19"]
[Round "9.25"]
[White "Moccero, Eduardo"]
[Black "Boabaid, Jorge Alberto Duarde"]
[Result "1-0"]
[ECO "A48"]
[WhiteElo "1919"]
[BlackElo "1756"]
[Annotator "ChessBase"]
[PlyCount "63"]
[EventDate "2022.02.12"]
[EventCountry "URU"]
[SourceTitle "playchess.com"]
[Source "ChessBase"]
[SourceQuality "1"]
[TimeControl "5400+30"]

1. d4 {[%emt 0:00:05]} Nf6 {[%emt 0:00:08]} 2. Nf3 {[%emt 0:00:05]} g6 {[%emt 0:00:21]} 3. c4 {[%emt 0:00:08]} Bg7 {[%emt 0:00:06]} 4. Nc3 {[%emt 0:00:05]} d6 {[%emt 0:00:21]} 5. Bf4 {[%emt 0:00:07]} O-O {[%emt 0:00:21]} 6. h3 {[%emt 0:00:07]} Nbd7 {[%emt 0:00:08]} 7. e3 {[%emt 0:00:16]} Re8 {[%emt 0:00:34]} 8. Be2 {[%emt 0:00:21]} b6 {[%emt 0:01:35]} 9. O-O {[%emt 0:00:54]} Bb7 {[%emt 0:00:41]} 10. Qc2 {[%emt 0:02:14]} e5 {[%emt 0:00:54]} 11. dxe5 {[%emt 0:00:30]} dxe5 {[%emt 0:00:09]} 12. Bh2 {[%emt 0:00:11]} Qe7 {[%emt 0:00:46]} 13. Nb5 {[%emt 0:04:38]} Rec8 {[%emt 0:00:15]} 14. Rfd1 {[%emt 0:01:45]} a6 {[%emt 0:00:45]} 15. Nc3 {[%emt 0:01:44]} c6 {[%emt 0:02:56]} 16. a3 {[%emt 0:04:12]} b5 {[%emt 0:01:50]} 17. b3 {[%emt 0:02:59]} Re8 {[%emt 0:03:10]} 18. Ra2 {[%emt 0:04:26]} b4 {[%emt 0:02:52]} 19. axb4 {[%emt 0:03:13]} Qxb4 {[%emt 0:00:17]} 20. Ra4 {[%emt 0:02:44]} Qe7 {[%emt 0:01:58]} 21. Ra2 {[%emt 0:01:17]} h5 {[%emt 0:03:52]} 22. b4 {[%emt 0:02:48]} Rad8 {[%emt 0:07:02]} 23. c5 {[%emt 0:02:07]} Rb8 {[%emt 0:06:33]} 24. Rb1 {[%emt 0:07:10]} Ra8 {[%emt 0:04:45]} 25. Bc4 {[%emt 0:02:07]} Nd5 {[%emt 0:01:39]} 26. Ne4 {[%emt 0:01:06]} Kh8 {[%emt 0:06:29]} 27. Nd6 {[%emt 0:01:13]} Reb8 {[%emt 0:05:06]} 28. e4 {[%emt 0:02:59]} Nxb4 {[%emt 0:07:48]} 29. Rxb4 {[%emt 0:01:21]} Nxc5 {[%emt 0:00:12]} 30. Nxf7+ {[%emt 0:00:38]} Kg8 {[%emt 0:00:53]} 31. N7xe5+ {[%emt 0:01:26]} Ne6 {[%emt 0:00:09]} 32. Nxc6 {[%emt 0:03:02]} 1-0

[Event "V Copa Marcel Duchamp 2022"]
[Site "Montevideo"]
[Date "2022.02.19"]
[Round "9.26"]
[White "Urrestarazu, Diego"]
[Black "Manteiga, Franco"]
[Result "1/2-1/2"]
[ECO "A17"]
[WhiteElo "1833"]
[BlackElo "1915"]
[Annotator "NA"]
[PlyCount "79"]
[EventDate "2022.02.12"]
[EventCountry "URU"]
[SourceTitle "playchess.com"]
[Source "ChessBase"]
[SourceQuality "1"]
[TimeControl "5400+30"]

1. c4 {[%emt 0:00:11]} Nf6 {[%emt 0:00:09]} 2. Nc3 {[%emt 0:00:23]} e6 {[%emt 0:00:05]} 3. g3 {[%emt 0:01:42]} d5 {[%emt 0:00:04]} 4. cxd5 {[%emt 0:00:39]} exd5 {[%emt 0:00:07]} 5. d4 {[%emt 0:00:56]} c6 {[%emt 0:01:00]} 6. Bg2 {[%emt 0:00:30]} Bf5 {[%emt 0:01:15]} 7. Nf3 {[%emt 0:01:26]} Nbd7 {[%emt 0:01:45]} 8. a3 {[%emt 0:04:15]} h6 {[%emt 0:05:15]} 9. O-O {[%emt 0:02:36]} Bd6 {[%emt 0:01:01]} 10. Nd2 {[%emt 0:02:33]} O-O {[%emt 0:01:30]} 11. e4 {[%emt 0:01:16]} dxe4 {[%emt 0:00:21]} 12. Ndxe4 {[%emt 0:00:51]} Nb6 {[%emt 0:30:35]} 13. Qf3 {[%emt 0:16:08]} Bxe4 {[%emt 0:03:16]} 14. Nxe4 {[%emt 0:00:41]} Nxe4 {[%emt 0:01:00]} 15. Qxe4 {[%emt 0:00:06]} Qd7 {[%emt 0:01:09]} 16. Qd3 {[%emt 0:10:36]} Be5 {[%emt 0:08:43]} 17. Rd1 {[%emt 0:08:05]} Rfd8 {[%emt 0:02:45]} 18. Be3 {[%emt 0:01:17]} Bf6 {[%emt 0:08:15]} 19. Rac1 {[%emt 0:06:32]} Nd5 {[%emt 0:00:57]} 20. Bxd5 {[%emt 0:03:27]} Qxd5 {[%emt 0:00:41]} 21. Qc4 {[%emt 0:02:05]} Qxc4 {[%emt 0:00:38]} 22. Rxc4 {[%emt 0:00:05]} Rd5 {[%emt 0:00:30]} 23. b4 {[%emt 0:07:32]} a5 {[%emt 0:04:05]} (23... Be7 $15 {is more appropriate.}) 24. Rc5 $15 {[%emt 0:02:43]} axb4 {[%emt 0:04:15]} 25. Rxd5 {[%emt 0:02:08]} cxd5 {[%emt 0:00:04]} 26. axb4 {[%emt 0:00:06]} Ra4 {[%emt 0:00:26]} 27. Rb1 {[%emt 0:00:40]} Be7 {[%emt 0:01:41]} 28. Bd2 {[%emt 0:03:04]} Ra2 {[%emt 0:00:32]} 29. Be3 {[%emt 0:01:34]} Ra4 {[%emt 0:01:41]} 30. Bd2 {[%emt 0:00:07]} Ra2 {[%emt 0:01:14]} 31. Be3 {[%emt 0:00:09]} Rc2 {[%emt 0:00:02]} 32. b5 {[%emt 0:01:28]} Rc4 {[%emt 0:00:15]} 33. Rc1 {[%emt 0:03:40]} Rxc1+ {[%emt 0:01:38]} 34. Bxc1 {[%emt 0:00:04]} Kf8 {[%emt 0:00:08]} 35. Kf1 {[%emt 0:00:17]} Ke8 {[%emt 0:00:06]} 36. Bd2 {[%emt 0:01:24]} Bf6 {[%emt 0:02:34]} 37. Bc3 {[%emt 0:00:39]} Kd7 {[%emt 0:00:49]} 38. Ke2 {[%emt 0:00:59]} Kc7 {[%emt 0:01:19]} 39. Ba5+ {[%emt 0:00:18]} Kd6 {[%emt 0:00:05]} 40. Bb6 1/2-1/2

[Event "V Copa Marcel Duchamp 2022"]
[Site "Montevideo"]
[Date "2022.02.19"]
[Round "9.27"]
[White "Popov, Mark"]
[Black "Escofet, Jaime"]
[Result "0-1"]
[ECO "C00"]
[WhiteElo "1758"]
[BlackElo "1981"]
[Annotator "NA"]
[PlyCount "54"]
[EventDate "2022.02.12"]
[EventCountry "URU"]
[SourceTitle "playchess.com"]
[Source "ChessBase"]
[SourceQuality "1"]
[TimeControl "5400+30"]

1. e4 e6 2. b3 d5 3. Bb2 Nf6 4. e5 Nfd7 5. Qh5 g6 6. Qf3 Bg7 7. d4 c5 8. c3 Nc6 9. Bb5 cxd4 10. Bxc6 bxc6 11. cxd4 c5 12. Qf4 Ba6 13. Nf3 Rc8 14. dxc5 Rxc5 15. Ng5 O-O 16. Nd2 Rc2 17. Ba3 Nxe5 18. Qh4 h6 19. Bxf8 hxg5 20. Bxg7 Nd3+ 21. Kd1 Rxd2+ 22. Kxd2 gxh4 23. Bd4 e5 24. Bxa7 Qa5+ 25. Ke3 d4+ 26. Bxd4 exd4+ 27. Kxd4 Qe5# 0-1

[Event "V Copa Marcel Duchamp 2022"]
[Site "Montevideo"]
[Date "2022.02.19"]
[Round "9.29"]
[White "Rodriguez Farias, Eduardo"]
[Black "Elena, Eduardo"]
[Result "1/2-1/2"]
[ECO "B30"]
[WhiteElo "1931"]
[BlackElo "1712"]
[Annotator "NA"]
[PlyCount "83"]
[EventDate "2022.02.12"]
[EventCountry "URU"]
[SourceTitle "playchess.com"]
[Source "ChessBase"]
[SourceQuality "1"]
[TimeControl "5400+30"]

1. e4 c5 2. Nf3 Nc6 3. c3 e5 4. Bb5 a6 5. Ba4 b5 6. Bc2 Be7 7. O-O Bf6 8. d4 d6 9. d5 Nce7 10. h3 Ng6 11. a4 Bd7 12. Na3 N8e7 13. Qe2 Qb6 14. axb5 axb5 15. Nc4 bxc4 16. Rxa8+ Nc8 17. Ba4 Bxa4 18. Rxc8+ Bd8 19. Qxc4 Bb3 20. Qe2 O-O 21. Rc6 Qb8 22. Qa6 Bc7 23. Nd2 Bc2 24. Qc4 Nf4 25. b4 Bd3 26. Qa2 Ne2+ 27. Kh1 Nxc3 28. Qb3 cxb4 29. f3 Bxf1 30. Nxf1 f5 31. Qc4 fxe4 32. Rxc7 exf3 33. gxf3 Nb5 34. Re7 Nd4 35. Qc7 Qxc7 36. Rxc7 Rxf3 37. Ne3 Rf2 38. Rd7 Nf3 39. Ng4 Rc2 40. Bh6 gxh6 41. Nf6+ Kf8 42. Nxh7+ 1/2-1/2